Cogmind - Beta 17 @@@ ROGUE MODE // 2026.07.17 @ 17:20:16 Player: Ice_Kraken505 Result: Destroyed by FH-X8H(p) with EM Pulse Gun Performance ------------- Evolutions (0) 0 Regions Visited (3) 600 Robots Destroyed (28) 140 Value Destroyed (423) 423 Prototype IDs (7) 140 Alien Tech Used (0) 0 Bonus (800) 800 TOTAL SCORE: 2103 Bonus ------- Registered with UFD 300 Met Optimus in HQ 500 Cogmind --------- Core Integrity 0/250 Matter 300/300 Energy 100/100 System Corruption 1% Temperature Cool (0) Movement Walking (100) Location -9/Scraptown Parts ------- > --- POWER (1) -------- (None) > --- PROPULSION (2) --- Overtuned Titanium Leg > --- UTILITY (2) ------ Surveybot 17 Chip Target Analyzer > --- WEAPON (2) ------- (None) > --- INVENTORY (5) ---- Scrap Suit Makeshift Hacking Suite Barrage Gun Grenade Launcher Peak State ------------ > --- POWER ------------ Improved Ion Engine > --- PROPULSION ------- Overtuned Treads Overtuned Treads > --- UTILITY ---------- Surveybot 17 Chip Target Analyzer > --- WEAPON ----------- Riot Gun Shotgun > --- INVENTORY -------- Scrap Suit Subdweller Beam Cannon Barrage Gun Grenade Launcher [Rating: 24] Favorites ----------- Power Light Ion Engine Engine Light Ion Engine Power Core Light Nuclear Core Propulsion Aluminum Leg Treads Overtuned Treads Leg Aluminum Leg Utility Improved Terrain Scanner Device Improved Terrain Scanner Storage Small Storage Unit Processor Surveybot 17 Chip Weapon Barrage Gun Energy Gun EM Shotgun Energy Cannon Subdweller Beam Cannon Ballistic Gun Barrage Gun Special Weapon Mining Laser Build | -11 -10 -10 -9 ------- Run | Yrd Mat Sub Scr Slots Evolved . | . . . . Power . | . . . . Propulsion . | . . . . Utility . | . . . . Weapon . | . . . . Parts Attached 34 | 7 12 4 11 Power 4 | 1 2 . 1 Engine 3 | 1 1 . 1 Core 1 | . 1 . . Reactor . | . . . . Propulsion 10 | 2 3 . 5 Treads 2 | . . . 2 Leg 8 | 2 3 . 3 Wheel . | . . . . Hover . | . . . . Flight . | . . . . Utility 10 | 2 3 2 3 Device 4 | 1 1 1 1 Storage 1 | 1 . . . Processor 5 | . 2 1 2 Hackware . | . . . . Protection . | . . . . Artifact . | . . . . Weapon 10 | 2 4 2 2 Energy Gun 3 | . 2 . 1 Energy Cannon 1 | . . 1 . Ballistic Gun 5 | 2 1 1 1 Ballistic Cannon . | . . . . Launcher . | . . . . Special Weapon 1 | . 1 . . Impact Weapon . | . . . . Slashing Weapon . | . . . . Piercing Weapon . | . . . . Special Melee Weapon . | . . . . Unidentified Prototypes . | . . . . Corrupted Parts 1 | . . . 1 System Corruption 1 | . . . 1 Parts Lost 8 | . 2 . 6 Power 2 | . 1 . 1 Propulsion 2 | . . . 2 Utility 1 | . . . 1 Weapon 3 | . 1 . 2 Highest Loss Streak 4 | . 1 . 4 To Critical Strikes . | . . . . Average Backups 4 | 3 4 4 4 Power . | . . . . Propulsion . | . . . . Utility 1 | 1 1 . . Weapon 3 | 1 2 3 3 Tool/Special . | . . . . Unused Backups 18 | 1 8 2 7 Power 3 | . 1 2 . Propulsion . | . . . . Utility 9 | 1 3 . 5 Weapon 6 | . 4 . 2 Tool/Special . | . . . . Average Slot Usage (%) 99 | . 98 99 99 Engine 12 | . 7 14 13 Core 1 | . 5 . . Leg 27 | . 27 28 27 Device 13 | . 14 14 13 Processor 13 | . 11 14 14 Energy Gun 5 | . 15 6 . Energy Cannon 8 | . . 7 13 Ballistic Gun 12 | . 8 13 13 Peak Build Rating 24 | 10 14 13 24 Average Rating 15 | 7 11 12 18 On Entrance 8 | . 9 11 13 Avg Prop Armor Cover (%) 11 | . 20 . 7 Naked Turns . | . . . . Heaviest Build 19 | 13 17 15 19 Greatest Support 38 | 20 20 20 38 Greatest Overweight (x) 3 | 3 1 . 1 Average Overweight (x) . | . . . . Largest Inventory Capacity 8 | 8 8 5 5 Average Capacity 5 | 7 5 5 5 Most Carried 8 | 6 8 5 5 Average Carried 4 | 3 4 4 4 Final Capacity 8 | 8 5 5 5 Final Carried 5 | 5 5 5 5 Class Distribution -------------------- 56% | Scavenger-Mutant 43% | Mutant Dominant Class ---------------- Scavenger-Mutant | -10/Materials Scavenger-Mutant | -10/Subcaves Mutant | -9/Scraptown Resources | -11 -10 -10 -9 ----------- Run | Yrd Mat Sub Scr Matter Collected 800 | 316 178 166 140 Remotely . | . . . . Salvage Created 861 | 225 431 35 170 Parts 67 | 20 38 3 6 Haulers Intercepted 1 | . 1 . . Recyclers Shooed . | . . . . Parts Field Recycled . | . . . . Retrieved Matter . | . . . . Parts Self-Destructed 12 | . . 10 2 Prevented . | . . . . Parts Restored . | . . . . Kills | -11 -10 -10 -9 ------- Run | Yrd Mat Sub Scr Combat Hostiles Destroyed 13 | . 10 1 2 Guns 12 | . 9 1 2 AOE 1 | . 1 . . Classes Destroyed 11 | 3 5 1 2 Worker 3 | 1 2 . . Builder 2 | . 2 . . Tunneler 6 | 5 1 . . Hauler 1 | . 1 . . Recycler 1 | 1 . . . Watcher 2 | . 2 . . Swarmer 6 | . 6 . . Grunt 4 | . 4 . . Subdweller 1 | . . 1 . Bolteater 1 | . . . 1 Scrapper 1 | . . . 1 Best Kill Streak 5 | 3 5 1 1 Combat Bots Only 2 | . 2 1 1 Max Kills in Single Turn 2 | 1 2 1 1 Gunslinging . | . . . . Exploded 1 | . 1 . . Melee . | . . . . Uniques/NPCs Destroyed . | . . . . Combat | -11 -10 -10 -9 -------- Run | Yrd Mat Sub Scr Hostile Shots Fired 130 | . 68 1 61 Missed 35 | . 17 1 17 Hits 95 | . 51 . 44 Projectile 95 | . 51 . 44 Critical Strikes 4 | . . . 4 Damage Taken 1208 | . 555 . 653 Core 257 | . 112 . 145 Absorbed by Shields . | . . . . Regen/Repaired (Parts) 29 | . 29 . . Core Remaining (%) 100 | 100 . . . Volleys Fired 81 | 23 52 1 5 Largest 2 | 2 2 2 2 Hottest 145 | 40 145 73 73 Shots Fired 149 | 46 91 2 10 Gun 140 | 46 82 2 10 Cannon . | . . . . Launcher . | . . . . Special 9 | . 9 . . Kinetic 91 | 46 39 1 5 Thermal 9 | . 9 . . Explosive . | . . . . Electromagnetic 49 | . 43 1 5 Robot Hit Streak 10 | 6 10 3 5 Robot Miss Streak 4 | 4 4 . 2 Penetration Max . | . . . . Secondary Targets 1 | . . . 1 Max Gunslinging Chain 1 | . . . 1 Shots Hit Robots 88 | 23 55 1 9 Core Hits 46 | 11 27 2 6 Critical Kills . | . . . . Critical Parts Destroyed . | . . . . Critical Strikes . | . . . . Melee Attacks . | . . . . Impact . | . . . . Slashing . | . . . . Piercing . | . . . . Sneak Attacks . | . . . . Combat Hostiles . | . . . . Follow-up Attacks . | . . . . Damage Inflicted 1080 | 211 722 15 132 Guns 1002 | 211 644 15 132 Cannons . | . . . . Explosions 78 | . 78 . . Melee . | . . . . Ramming . | . . . . Kinetic 485 | 211 201 . 73 Thermal 78 | . 78 . . Explosive . | . . . . Electromagnetic 517 | . 443 15 59 Impact . | . . . . Slashing . | . . . . Piercing . | . . . . Highest Corruption 1 | . 1 1 1 Average Corruption 1 | . 1 1 1 Corruption Purged . | . . . . Corruption Blocked . | . . . . Effects 14 | . 9 4 1 Message Errors 3 | . 2 1 . Matter Fused 5 | . 3 1 1 Heat Flow Errors 2 | . 2 . . Energy Discharges 1 | . 1 . . Data Loss (minor) 2 | . . 2 . Alerts 1 | . 1 . . Overload Shots . | . . . . Overflow Damage . | . . . . Projectiles . | . . . . Explosions . | . . . . Melee . | . . . . Knockbacks . | . . . . Impact . | . . . . Kinetic . | . . . . Secondary . | . . . . Self-Inflicted Damage 39 | . 39 . . Shots 1 | . 1 . . Rammed . | . . . . Targets Rammed 1 | . . . 1 Kicked 1 | . . . 1 Crushed . | . . . . Highest Temperature 227 | . 227 . 208 Average Temperature 43 | . 39 . 70 Received Heat Transfer 509 | . 183 . 326 Siege Activations . | . . . . Martial Activations . | . . . . Shielding Activations . | . . . . Robots Disrupted . | . . . . Combat Hostiles . | . . . . Robots Corrupted . | . . . . Combat Hostiles . | . . . . Parts Fried 2 | . 2 . . Impact Corruptions . | . . . . Robots Melted . | . . . . Combat Hostiles . | . . . . Parts Melted . | . . . . Heat Transferred . | . . . . Parts Sabotaged . | . . . . Parts Stolen . | . . . . Parts Stripped . | . . . . Power Chain Reactions 2 | . 2 . . Alert | -11 -10 -10 -9 ------- Run | Yrd Mat Sub Scr Maximum Alert Level . | . . . . Low Security (%) 100 | 100 100 . . Level 1 . | . . . . Level 2 . | . . . . Level 3 . | . . . . Level 4 . | . . . . Level 5 . | . . . . High Security . | . . . . Max Security . | . . . . Peak Influence 124 | 10 124 . . Initial . | . . . . Average 28 | 1 32 . . Influence Increases 400 | 35 365 . . Destroy 0b10 Robot/C 200 | . 200 . . Destroy 0b10 Robot/NC 75 | 35 40 . . Destroy Leader 46 | . 46 . . Successful Hack 6 | . 6 . . Disable Machine 30 | . 30 . . Destroy Structure 13 | . 13 . . Lose Combat Pursuer 30 | . 30 . . Influence Decreases 400 | 35 365 . . Time Decay 380 | 35 345 . . Lost Part 20 | . 20 . . Squads Dispatched 2 | . 2 . . Investigation 1 | . 1 . . Extermination . | . . . . Reinforcement 1 | . 1 . . Assault . | . . . . Garrison . | . . . . Intercept . | . . . . Searches Triggered . | . . . . Construction Impeded . | . . . . Haulers Reinforced . | . . . . Active Scanning Responses . | . . . . Cargo Convoy Interrupts . | . . . . Stealth | -11 -10 -10 -9 --------- Run | Yrd Mat Sub Scr Distress Signals 2 | . 2 . . Communications Jammed . | . . . . Distress Signals . | . . . . Times Spotted 38 | . 17 1 20 Peak Tracking Total 8 | . 5 1 8 Tactical Retreats 2 | . 2 . . Traps | -11 -10 -10 -9 ------- Run | Yrd Mat Sub Scr Traps Triggered 1 | . 1 . . Indirectly . | . . . . Trap Hack Attempts . | . . . . Triggered . | . . . . Disarmed . | . . . . Reprogrammed . | . . . . Reused . | . . . . Traps Extracted . | . . . . Installed . | . . . . Triggered . | . . . . Machines | -11 -10 -10 -9 ---------- Run | Yrd Mat Sub Scr Machines Disabled 2 | . 2 . . Max in Single Turn 1 | . 1 . . Machines Repaired . | . . . . Machines Dismantled . | . . . . Machines Sabotaged . | . . . . Overloaded Fab Kills . | . . . . Hacking | -11 -10 -10 -9 --------- Run | Yrd Mat Sub Scr Machines Accessed 13 | . 4 . 9 Terminals 3 | . 3 . . Fabricators . | . . . . Repair Stations 1 | . 1 . . Recycling Units . | . . . . Scanalyzers . | . . . . Garrison Access . | . . . . Total Hacks 78 | . 16 . 62 Successful 69 | . 7 . 62 Failed 9 | . 9 . . Catastrophic 3 | . 3 . . Database Lockouts . | . . . . Manual 8 | . 8 . . Terminals 12 | . 12 . . Fabricators . | . . . . Repair Stations 4 | . 4 . . Recycling Units . | . . . . Scanalyzers . | . . . . Garrison Access . | . . . . Terminal Hacks 65 | . 3 . 62 Record 55 | . . . 55 Robot Analysis 6 | . . . 6 Locate Traps 2 | . 2 . . Zone Layout 1 | . 1 . . Proto ID Catalog 1 | . . . 1 Fabricator Hacks . | . . . . Repair Station Hacks 4 | . 4 . . Scan Component 2 | . 2 . . Repair 2 | . 2 . . Recycling Unit Hacks . | . . . . Scanalyzer . | . . . . Garrison Access Hacks . | . . . . Unauthorized Hacks . | . . . . Terminals . | . . . . Fabricators . | . . . . Repair Stations . | . . . . Recycling Units . | . . . . Scanalyzers . | . . . . Garrison Access . | . . . . Data Cores Recovered . | . . . . Used . | . . . . Hacking Detections 3 | . 3 . . Full Trace Events 3 | . 3 . . Feedback Events . | . . . . Feedback Blocked . | . . . . Robot Schematics Acquired . | . . . . Robots Built . | . . . . Authchips . | . . . . Time . | . . . . Total Robot Build Rating . | . . . . Part Schematics Acquired . | . . . . Parts Built . | . . . . Authchips . | . . . . Time . | . . . . Total Part Build Rating . | . . . . Part Studies Acquired . | . . . . Parts Repaired 2 | . 2 . . Time 64 | . 64 . . Parts Recycled . | . . . . Recycled Matter . | . . . . Retrieved Matter . | . . . . Retrieved Components . | . . . . Parts Scanalyzed . | . . . . Part Schematics Acquired . | . . . . Parts Damaged . | . . . . Bothacking | -11 -10 -10 -9 ------------ Run | Yrd Mat Sub Scr Used RIF Installer . | . . . . Robots Hacked . | . . . . Non-combat . | . . . . Combat . | . . . . Robot Hacks Applied . | . . . . Relay Couplers Released . | . . . . Fabnet Peak Effective % . | . . . . Robots Rewired . | . . . . Allies Hacked . | . . . . Hacks Repelled . | . . . . Allies | -11 -10 -10 -9 -------- Run | Yrd Mat Sub Scr Total Allies . | . . . . Largest Group . | . . . . Highest-Rated Group . | . . . . Highest-Rated Ally . | . . . . Total Orders . | . . . . Ally Attacks . | . . . . Total Damage . | . . . . Kills . | . . . . Allies Corrupted . | . . . . Allies Melted 4 | . . . 4 Intel | -11 -10 -10 -9 ------- Run | Yrd Mat Sub Scr Active Infowar (turns) 4730 | 138 1189 800 2603 Optics 2 | . . 2 . Terrain 4728 | 138 1189 798 2603 Robot Analysis Total 6 | . . . 6 Derelict Logs Recovered 2 | . . . 2 Drone Launches . | . . . . Drone Recoveries . | . . . . Exploration | -11 -10 -10 -9 ------------- Run | Yrd Mat Sub Scr Turns Passed 4976 | 211 1247 809 2709 Spaces Moved 3413 | 106 772 390 2145 Core 15 | 9 6 . . Treads 7 | . . . 7 Legs 3391 | 97 766 390 2138 Wheels . | . . . . Hover . | . . . . Flight . | . . . . Fastest Speed 50 | 50 100 120 95 Average Speed 120 | 124 119 120 120 Slowest Speed 200 | 200 120 120 190 Overloaded Moves . | . . . . Propulsion Burnouts . | . . . . Robots Hopped . | . . . . Potential Cave-ins . | . . . . Cave-ins Triggered . | . . . . Exploration Rate (%) 48 | 4 78 23 89 Regions Visited 3 Branch Regions 2 Pre-discovered Areas 6 | . . 1 5 Known Exits Taken 1 | . 1 . . Unknown Exits Taken 2 | 1 . 1 . Scrap Searched 12 | . . 3 9 Spaces Dug 7 | . 7 . . Terrain Destroyed 12 | . 12 . . Melee . | . . . . Projectile 7 | . 7 . . AOE 5 | . 5 . . Terrain Rammed . | . . . . Walls Destroyed . | . . . . Machines Disabled . | . . . . Actions | -11 -10 -10 -9 --------- Run | Yrd Mat Sub Scr Total 4139 | 145 992 730 2272 Wait 507 | 1 108 319 79 Move 3410 | 105 771 389 2145 Hop . | . . . . Pick Up 39 | 7 17 4 11 Fast Attach 28 | 7 8 5 8 Attach 4 | . 1 1 2 Detach 5 | . 2 1 2 Swap 16 | . 13 1 2 Drop 47 | 2 20 8 17 Fire 81 | 23 52 1 5 Melee . | . . . . Ram . | . . . . Kick 1 | . . . 1 Crush . | . . . . Escape Stasis . | . . . . Rewire 1 | . . 1 . Trap . | . . . . Miscellaneous . | . . . . Route ------- -11/Scrapyard -10/Materials (discovered 5 exits: *Mat x2 / *Min x2 / *Sub) -10/Subcaves (discovered 2 exits: *Mat / *Scr) -9/Scraptown (discovered 2 exits: [*Fac x2]) History --------- Turn | Location | Event 11 | -11/Scrapyard | Discovered new exit (range 16) 212 | -11/Scrapyard | Entered Materials 438 | -10/Materials | Discovered new exit (range 6) 442 | -10/Materials | Identified exit to Subcaves 565 | -10/Materials | Discovered new exit (range 18) 587 | -10/Materials | Discovered new exit (range 9) 597 | -10/Materials | Identified exit to Materials 601 | -10/Materials | Build established: Scavenger-Mutant 647 | -10/Materials | Repaired EM Shotgun 681 | -10/Materials | Repaired EM Shotgun 719 | -10/Materials | Identified exit to Mines 961 | -10/Materials | Discovered exit to Mines (range 13) 1035 | -10/Materials | Discovered exit to Materials (range 16) 1459 | -10/Materials | Entered Subcaves 1460 | -10/Subcaves | Approached by a straggling Scientist 1651 | -10/Subcaves | Discovered new exit (range 13) 1763 | -10/Subcaves | Learned location of Zion (-6) 1763 | -10/Subcaves | Met a Zionite searching for "candidates" 1899 | -10/Subcaves | Scientist uncovered a shortcut to Scraptown 2222 | -10/Subcaves | Identified exit to Materials 2268 | -10/Subcaves | Entered Scraptown 2271 | -9/Scraptown | System corruption cleaned by C-Scrubber 2468 | -9/Scraptown | Visited UFD Registry 2468 | -9/Scraptown | Registered with UFD as "Gearslicer" 2484 | -9/Scraptown | Visited CPS Storage 2544 | -9/Scraptown | Visited Botcube Research 2598 | -9/Scraptown | Visited Chapter 10 2619 | -9/Scraptown | Visited Derelict Rescue Squad 2646 | -9/Scraptown | Visited Analyses Database 2691 | -9/Scraptown | Visited Cartography Club 2727 | -9/Scraptown | Found Surveybot 17 Chip 2732 | -9/Scraptown | Discovered new exit (range 11) 3098 | -9/Scraptown | Learned location of Proximity Caves (-5) 3098 | -9/Scraptown | Learned location of Cetus (-5) 3098 | -9/Scraptown | Learned location of Testing (-3) 3098 | -9/Scraptown | Learned 8 Materials zone layouts 3098 | -9/Scraptown | Learned 8 Factory zone layouts 3098 | -9/Scraptown | Learned 8 Research zone layouts 3098 | -9/Scraptown | Learned 12 Research zone layouts 3098 | -9/Scraptown | Learned 4 Mines zone layouts 3098 | -9/Scraptown | Learned 16 Lower Caves zone layouts 3098 | -9/Scraptown | Learned 12 Upper Caves zone layouts 3098 | -9/Scraptown | Learned 20 Upper Caves zone layouts 3098 | -9/Scraptown | Learned 16 Proximity Caves zone layouts 3098 | -9/Scraptown | Learned 4 Hub_04(d) zone layouts 3098 | -9/Scraptown | Learned location of 3 exits from Factory 3098 | -9/Scraptown | Learned location of 2 exits from Research 3098 | -9/Scraptown | Learned location of 1 exit from Upper Caves 3156 | -9/Scraptown | Visited DA-N13 Charitable Foundation 3168 | -9/Scraptown | Found DCF Scrap (29 items) 3246 | -9/Scraptown | Visited Science Guys 3292 | -9/Scraptown | Visited Scrap Suit Storage 3473 | -9/Scraptown | Build established: Mutant 3635 | -9/Scraptown | Visited Bundlers 3701 | -9/Scraptown | Visited Cyclists 3716 | -9/Scraptown | Entered Cyclist Reading Room 3739 | -9/Scraptown | Visited Awakened 3792 | -9/Scraptown | Discovered new exit (range 17) 3798 | -9/Scraptown | Scanned Subdweller tech in exchange for log data 3800 | -9/Scraptown | Learned Factory stockpile data 3802 | -9/Scraptown | Learned Research emergency access door positions 4242 | -9/Scraptown | Visited Science Testing Area 4358 | -9/Scraptown | Visited Curators Association 4747 | -9/Scraptown | Met Optimus 4747 | -9/Scraptown | Accepted into 0bPrime 4835 | -9/Scraptown | Civil war broke out across Scraptown 4889 | -9/Scraptown | Found Scrap Suit 4905 | -9/Scraptown | Lost 6 allies 4962 | -9/Scraptown | Core integrity fell below 50% 4976 | -9/Scraptown | Core integrity fell below 20% 4977 | -9/Scraptown | Destroyed by FH-X8H(p) with EM Pulse Gun Last Messages --------------- Acquired 25 matter. Bolt penetrates Wall. LS-WQL(j) destroyed. Shotgun destroyed. Critical hit (Burn: +50). Riot Gun destroyed. Bolt penetrates Wall. Imp. Ion Engine destroyed. Critical hit (Burn: +50). Penetrated by Bolt. Ovr. Titanium Leg destroyed. Kicked IX-X9I(h) out of the way. Wall collapses. Penetrated by Bolt. Bolt penetrates Wall. Wall collapses. 71-96Z(j) destroyed. System corrupted: Matter fused (-6). Acquired 6 matter. [Achievement: This Is Interesting...] Map ----- +----------------------------------------------------+ | | | | | | | | | | | | | | | ????#???#???##???###????#?#??#???#???????????????? | | #?######?#####?####?#################????????????? | | ###################################?###??????????? | | ###?#############################?#?####?????????? | | ##########################################???????? | | ############################################?????? | | ############################################?????? | | ############################################?????? | | ##############################################???? | | ##############################################??#? | | ###############################################??# | | ################################################## | | ################################"""############### | | ################################" "############### | | """##"""##""|##"""##### ####### < ############### | | "" ##"" ##" |##!!"#### ###### ############### | | "" !![%= !=[p= ############## | | !! j !/ [% ############## | | ######################![!@######################## | | ######################**=######################### | | #######################%!## # # # ############ | | """""""""""############=%##### # # ## ############ | | """"" X """############=[= ##### # ############ | | """ """"############==" # # # ############ | | " "|""############[%* # ## #### ############# | | """ """"############%=! # # # ############# | | """" ""#* =## ###!![ ####X# ############# | | "" #!=]##* ###*=*=##[#### # ############# | | "" "" " #*%!]==%[###%=[! = %*# # ############ | | "" "" "&#[!|!=!* ###[[!##"##!"################# | | "#[*|!* ###!!%= !%= ############ | | " #*=!== ###!!%* =! ############ | | ##### ########### ####"===" ###################### | | ##### ########### ####" "" ###################### | | """"" """""" "" """ [ "##" """"""########### | | ! [% "##" " "" "########### | | =%[ !]"##" " "" "########### | | ! "##" "########### | | "##" """"##########? | | ! [**%! " "##########? | | """""""""""""""""""""" % ! ="##" " "" "########??? | | """""""""""""""""""""" !=%! "##" " "" "#########?? | | ### ################" /%=! "##" """"""#######?#?? | +----------------------------------------------------+ Best States ------------- Heat Dissipation 25 Energy Generation 14 Energy Capacity 265 Matter Stores 300 Matter Capacity 300 Sight Range 21 Terrain Scan Range 20 Terrain Scan Density 1210 Evasion (%) 55 Target Analysis 5 Recoil Reduction 2 Item Schematics ----------------- None Robot Schematics ------------------ None Fabricated ------------ Nothing Repaired ---------- EM Shotgun | 70% | -10/Materials EM Shotgun | 72% | -10/Materials Studied --------- None Alien Tech Used ----------------- None Achievements -------------- Armchair Analyst Bob, First Of His Name Nice Directions, Buddy Omniscient Cartographer Sprinter This Is Interesting... Challenges ------------ None Game ------ Seed DeuteriumEtherialMultirail Manual? 0 Play Time 00:59:49 Cumulative 30.8 hours Start 2026.07.17 @ 16:18:35 End 2026.07.17 @ 17:20:16 Sessions 1 Manual Loads 0 Difficulty Rogue Special Mode None Game No. 32 Rogue 32 Adventurer 0 Explorer 0 Win Type - Total 0 Types 0/0/0/0/0/0/0/0/0/0 Lore% 26 Gallery% 27 Achievement% 19 Wizard Run 0 Options --------- Layout 1 ASCII 0 Keyboard 1 Movement Arrows Keybinds 0 Fullscreen 2 Font 24/Smallcaps Map View 50x35 Zoom Use 0% Tactical HUD 0 Map Filters NONE Filters NONE Steam 1 RUN: 9fb080a3-539a-4868-b7f7-28797d7accea